{"text_format":"3","workbook":"xlsx","n_sheets":1,"sheets":["Személyes havi költségvetés"],"read":"whole","date_system":"1900"}

{"sheet":"Személyes havi költségvetés","index":0,"n_rows":62,"n_cols":10,"rows_kept":62,"merged":[[0,1,0,9],[2,1,4,1],[2,2,2,3],[2,7,2,8],[3,2,3,3],[3,7,3,8],[4,2,4,3],[4,6,4,8],[5,1,7,1],[5,2,5,3],[5,7,5,8],[6,2,6,3],[6,7,6,8],[7,2,7,3],[7,6,7,8],[20,6,20,9],[21,1,21,4],[29,6,29,9],[31,1,31,4],[36,6,36,9],[38,1,38,4],[42,6,42,9],[44,1,44,4],[48,6,48,9],[52,1,52,4],[55,6,55,9]]}
[null,"Személyes havi költségvetés"]
[]
[null,"TERVEZETT HAVI BEVÉTEL","Bevétel 1",null,{"v":2500,"d":"2,500 Ft"},null,"TELJES TERVEZETT KIADÁS ","(Tervezett bevétel mínusz kiadások)",null,{"$f":"SUM(C21,C31,C38,C44,C52,C62,H20,H29,H36,H42,H48,H55)","v":{"v":2060,"d":"2,060 Ft"}}]
[null,null,"Plusz bevétel",null,{"v":500,"d":"500 Ft"},null,"TELJES TÉNYLEGES KIADÁS ","(Tényleges bevétel mínusz kiadások)",null,{"$f":"SUM(D21,D31,D38,D44,D52,D62,I20,I29,I36,I42,I48,I55)","v":{"v":2040,"d":"2,040 Ft"}}]
[null,null,"Teljes havi bevétel",null,{"$f":"SUM(E3:E4)","v":{"v":3000,"d":"3,000 Ft"}},null,"Összes kiadás különbözete",null,null,{"$f":"SUM(E21,E31,E38,E44,E52,E62,J20,J29,J36,J42,J48,J55)","v":{"v":20,"d":"20 Ft"}}]
[null,"TÉNYLEGES HAVI BEVÉTEL","Bevétel 1",null,{"v":2500,"d":"2,500 Ft"},null,"TERVEZETT EGYENLEG","(Tervezett bevétel mínusz kiadások)",null,{"$f":"E5-J3","v":{"v":940,"d":"940 Ft"}}]
[null,null,"Plusz bevétel",null,{"v":500,"d":"500 Ft"},null,"TÉNYLEGES EGYENLEG","(Tényleges bevétel mínusz kiadások)",null,{"$f":"E8-J4","v":{"v":960,"d":"960 Ft"}}]
[null,null,"Teljes havi bevétel",null,{"$f":"SUM(E6:E7)","v":{"v":3000,"d":"3,000 Ft"}},null,"EGYENLEGEK KÜLÖNBÖZETE (tényleges mínusz tervezett)",null,null,{"$f":"J7-J6","v":{"v":20,"d":"20 Ft"}}]
[]
[null,"LAKÁS","Tervezett költség","Tényleges költség","Különbözet",null,"SZÓRAKOZÁS","Tervezett költség","Tényleges költség","Különbözet"]
[null,"Jelzálog vagy bérleti díj",{"v":1500,"d":"1,500 Ft"},{"v":1400,"d":"1,400 Ft"},{"$f":"Lakás[[#This Row],[Tervezett költség]]-Lakás[[#This Row],[Tényleges költség]]","v":{"v":100,"d":"100 Ft"}},null,"Videó/DVD",{"v":0,"d":"0 Ft"},{"v":50,"d":"50 Ft"},{"$f":"Szórakozás[[#This Row],[Tervezett költség]]-Szórakozás[[#This Row],[Tényleges költség]]","v":{"v":-50,"d":"-50 Ft"}}]
[null,"Telefon",{"v":60,"d":"60 Ft"},{"v":100,"d":"100 Ft"},{"$f":"Lakás[[#This Row],[Tervezett költség]]-Lakás[[#This Row],[Tényleges költség]]","v":{"v":-40,"d":"-40 Ft"}},null,"CD-k",null,null,{"$f":"Szórakozás[[#This Row],[Tervezett költség]]-Szórakozás[[#This Row],[Tényleges költség]]","v":{"v":0,"d":"0 Ft"}}]
[null,"Áram",{"v":50,"d":"50 Ft"},{"v":60,"d":"60 Ft"},{"$f":"Lakás[[#This Row],[Tervezett költség]]-Lakás[[#This Row],[Tényleges költség]]","v":{"v":-10,"d":"-10 Ft"}},null,"Filmek",null,null,{"$f":"Szórakozás[[#This Row],[Tervezett költség]]-Szórakozás[[#This Row],[Tényleges költség]]","v":{"v":0,"d":"0 Ft"}}]
[null,"Gáz",{"v":200,"d":"200 Ft"},{"v":180,"d":"180 Ft"},{"$f":"Lakás[[#This Row],[Tervezett költség]]-Lakás[[#This Row],[Tényleges költség]]","v":{"v":20,"d":"20 Ft"}},null,"Koncertek",null,null,{"$f":"Szórakozás[[#This Row],[Tervezett költség]]-Szórakozás[[#This Row],[Tényleges költség]]","v":{"v":0,"d":"0 Ft"}}]
[null,"Víz és csatornázás",null,null,{"$f":"Lakás[[#This Row],[Tervezett költség]]-Lakás[[#This Row],[Tényleges költség]]","v":{"v":0,"d":"0 Ft"}},null,"Sportesemények",null,null,{"$f":"Szórakozás[[#This Row],[Tervezett költség]]-Szórakozás[[#This Row],[Tényleges költség]]","v":{"v":0,"d":"0 Ft"}}]
[null,"Kábeltévé",null,null,{"$f":"Lakás[[#This Row],[Tervezett költség]]-Lakás[[#This Row],[Tényleges költség]]","v":{"v":0,"d":"0 Ft"}},null,"Színház",null,null,{"$f":"Szórakozás[[#This Row],[Tervezett költség]]-Szórakozás[[#This Row],[Tényleges költség]]","v":{"v":0,"d":"0 Ft"}}]
[null,"Szemétdíj",null,null,{"$f":"Lakás[[#This Row],[Tervezett költség]]-Lakás[[#This Row],[Tényleges költség]]","v":{"v":0,"d":"0 Ft"}},null,"Egyéb",null,null,{"$f":"Szórakozás[[#This Row],[Tervezett költség]]-Szórakozás[[#This Row],[Tényleges költség]]","v":{"v":0,"d":"0 Ft"}}]
[null,"Karbantartás és javítások",null,null,{"$f":"Lakás[[#This Row],[Tervezett költség]]-Lakás[[#This Row],[Tényleges költség]]","v":{"v":0,"d":"0 Ft"}},null,"Egyéb",null,null,{"$f":"Szórakozás[[#This Row],[Tervezett költség]]-Szórakozás[[#This Row],[Tényleges költség]]","v":{"v":0,"d":"0 Ft"}}]
[null,"Kellékek",null,null,{"$f":"Lakás[[#This Row],[Tervezett költség]]-Lakás[[#This Row],[Tényleges költség]]","v":{"v":0,"d":"0 Ft"}},null,"Egyéb",null,null,{"$f":"Szórakozás[[#This Row],[Tervezett költség]]-Szórakozás[[#This Row],[Tényleges költség]]","v":{"v":0,"d":"0 Ft"}}]
[null,"Egyéb",null,null,{"$f":"Lakás[[#This Row],[Tervezett költség]]-Lakás[[#This Row],[Tényleges költség]]","v":{"v":0,"d":"0 Ft"}},null,"Összeg",{"$f":"SUBTOTAL(109,Szórakozás[Tervezett költség])","v":{"v":0,"d":"0 Ft"}},{"$f":"SUBTOTAL(109,Szórakozás[Tényleges költség])","v":{"v":50,"d":"50 Ft"}},{"$f":"SUBTOTAL(109,Szórakozás[Különbözet])","v":{"v":-50,"d":"-50 Ft"}}]
[null,"Összeg",{"$f":"SUBTOTAL(109,Lakás[Tervezett költség])","v":{"v":1810,"d":"1,810 Ft"}},{"$f":"SUBTOTAL(109,Lakás[Tényleges költség])","v":{"v":1740,"d":"1,740 Ft"}},{"$f":"SUBTOTAL(109,Lakás[Különbözet])","v":{"v":70,"d":"70 Ft"}}]
[{"$nulls":6},"HITELEK","Tervezett költség","Tényleges költség","Különbözet"]
[null,"KÖZLEKEDÉS","Tervezett költség","Tényleges költség","Különbözet",null,"Személyes",null,null,{"$f":"Hitelek[[#This Row],[Tervezett költség]]-Hitelek[[#This Row],[Tényleges költség]]","v":{"v":0,"d":"0 Ft"}}]
[null,"Autó törlesztése",{"v":250,"d":"250 Ft"},{"v":250,"d":"250 Ft"},{"$f":"Közlekedés[[#This Row],[Tervezett költség]]-Közlekedés[[#This Row],[Tényleges költség]]","v":{"v":0,"d":"0 Ft"}},null,"Diák",null,null,{"$f":"Hitelek[[#This Row],[Tervezett költség]]-Hitelek[[#This Row],[Tényleges költség]]","v":{"v":0,"d":"0 Ft"}}]
[null,"Busz/taxi",null,null,{"$f":"Közlekedés[[#This Row],[Tervezett költség]]-Közlekedés[[#This Row],[Tényleges költség]]","v":{"v":0,"d":"0 Ft"}},null,"Hitelkártya",null,null,{"$f":"Hitelek[[#This Row],[Tervezett költség]]-Hitelek[[#This Row],[Tényleges költség]]","v":{"v":0,"d":"0 Ft"}}]
[null,"Biztosítás",null,null,{"$f":"Közlekedés[[#This Row],[Tervezett költség]]-Közlekedés[[#This Row],[Tényleges költség]]","v":{"v":0,"d":"0 Ft"}},null,"Hitelkártya",null,null,{"$f":"Hitelek[[#This Row],[Tervezett költség]]-Hitelek[[#This Row],[Tényleges költség]]","v":{"v":0,"d":"0 Ft"}}]
[null,"Engedélyek",null,null,{"$f":"Közlekedés[[#This Row],[Tervezett költség]]-Közlekedés[[#This Row],[Tényleges költség]]","v":{"v":0,"d":"0 Ft"}},null,"Hitelkártya",null,null,{"$f":"Hitelek[[#This Row],[Tervezett költség]]-Hitelek[[#This Row],[Tényleges költség]]","v":{"v":0,"d":"0 Ft"}}]
[null,"Üzemanyag",null,null,{"$f":"Közlekedés[[#This Row],[Tervezett költség]]-Közlekedés[[#This Row],[Tényleges költség]]","v":{"v":0,"d":"0 Ft"}},null,"Egyéb",null,null,{"$f":"Hitelek[[#This Row],[Tervezett költség]]-Hitelek[[#This Row],[Tényleges költség]]","v":{"v":0,"d":"0 Ft"}}]
[null,"Karbantartás",null,null,{"$f":"Közlekedés[[#This Row],[Tervezett költség]]-Közlekedés[[#This Row],[Tényleges költség]]","v":{"v":0,"d":"0 Ft"}},null,"Összeg",{"$f":"SUBTOTAL(109,Hitelek[Tervezett költség])","v":{"v":0,"d":"0 Ft"}},{"$f":"SUBTOTAL(109,Hitelek[Tényleges költség])","v":{"v":0,"d":"0 Ft"}},{"$f":"SUBTOTAL(109,Hitelek[Különbözet])","v":{"v":0,"d":"0 Ft"}}]
[null,"Egyéb",null,null,{"$f":"Közlekedés[[#This Row],[Tervezett költség]]-Közlekedés[[#This Row],[Tényleges költség]]","v":{"v":0,"d":"0 Ft"}}]
[null,"Összeg",{"$f":"SUBTOTAL(109,Közlekedés[Tervezett költség])","v":{"v":250,"d":"250 Ft"}},{"$f":"SUBTOTAL(109,Közlekedés[Tényleges költség])","v":{"v":250,"d":"250 Ft"}},{"$f":"SUBTOTAL(109,Közlekedés[Különbözet])","v":{"v":0,"d":"0 Ft"}},null,"ADÓK","Tervezett költség","Tényleges költség","Különbözet"]
[{"$nulls":6},"Szövetségi",null,null,{"$f":"Adók[[#This Row],[Tervezett költség]]-Adók[[#This Row],[Tényleges költség]]","v":{"v":0,"d":"0 Ft"}}]
[null,"BIZTOSÍTÁS","Tervezett költség","Tényleges költség","Különbözet",null,"Állami",null,null,{"$f":"Adók[[#This Row],[Tervezett költség]]-Adók[[#This Row],[Tényleges költség]]","v":{"v":0,"d":"0 Ft"}}]
[null,"Lakás",null,null,{"$f":"Biztosítás[[#This Row],[Tervezett költség]]-Biztosítás[[#This Row],[Tényleges költség]]","v":{"v":0,"d":"0 Ft"}},null,"Helyi",null,null,{"$f":"Adók[[#This Row],[Tervezett költség]]-Adók[[#This Row],[Tényleges költség]]","v":{"v":0,"d":"0 Ft"}}]
[null,"Egészség",null,null,{"$f":"Biztosítás[[#This Row],[Tervezett költség]]-Biztosítás[[#This Row],[Tényleges költség]]","v":{"v":0,"d":"0 Ft"}},null,"Egyéb",null,null,{"$f":"Adók[[#This Row],[Tervezett költség]]-Adók[[#This Row],[Tényleges költség]]","v":{"v":0,"d":"0 Ft"}}]
[null,"Élet",null,null,{"$f":"Biztosítás[[#This Row],[Tervezett költség]]-Biztosítás[[#This Row],[Tényleges költség]]","v":{"v":0,"d":"0 Ft"}},null,"Összeg",{"$f":"SUBTOTAL(109,Adók[Tervezett költség])","v":{"v":0,"d":"0 Ft"}},{"$f":"SUBTOTAL(109,Adók[Tényleges költség])","v":{"v":0,"d":"0 Ft"}},{"$f":"SUBTOTAL(109,Adók[Különbözet])","v":{"v":0,"d":"0 Ft"}}]
[null,"Egyéb",null,null,{"$f":"Biztosítás[[#This Row],[Tervezett költség]]-Biztosítás[[#This Row],[Tényleges költség]]","v":{"v":0,"d":"0 Ft"}}]
[null,"Összeg",{"$f":"SUBTOTAL(109,Biztosítás[Tervezett költség])","v":{"v":0,"d":"0 Ft"}},{"$f":"SUBTOTAL(109,Biztosítás[Tényleges költség])","v":{"v":0,"d":"0 Ft"}},{"$f":"SUBTOTAL(109,Biztosítás[Különbözet])","v":{"v":0,"d":"0 Ft"}},null,"MEGTAKARÍTÁSOK VAGY BEFEKTETÉSEK","Tervezett költség","Tényleges költség","Különbözet"]
[{"$nulls":6},"Nyugdíjszámla",null,null,{"$f":"MegtakarításokÉsBefektetések[[#This Row],[Tervezett költség]]-MegtakarításokÉsBefektetések[[#This Row],[Tényleges költség]]","v":{"v":0,"d":"0 Ft"}}]
[null,"ÉLELMISZER","Tervezett költség","Tényleges költség","Különbözet",null,"Befektetési számla",null,null,{"$f":"MegtakarításokÉsBefektetések[[#This Row],[Tervezett költség]]-MegtakarításokÉsBefektetések[[#This Row],[Tényleges költség]]","v":{"v":0,"d":"0 Ft"}}]
[null,"Bevásárlás",null,null,{"$f":"Élelmiszer[[#This Row],[Tervezett költség]]-Élelmiszer[[#This Row],[Tényleges költség]]","v":{"v":0,"d":"0 Ft"}},null,"Egyéb",null,null,{"$f":"MegtakarításokÉsBefektetések[[#This Row],[Tervezett költség]]-MegtakarításokÉsBefektetések[[#This Row],[Tényleges költség]]","v":{"v":0,"d":"0 Ft"}}]
[null,"Házon kívüli étkezések",null,null,{"$f":"Élelmiszer[[#This Row],[Tervezett költség]]-Élelmiszer[[#This Row],[Tényleges költség]]","v":{"v":0,"d":"0 Ft"}},null,"Összeg",{"$f":"SUBTOTAL(109,MegtakarításokÉsBefektetések[Tervezett költség])","v":{"v":0,"d":"0 Ft"}},{"$f":"SUBTOTAL(109,MegtakarításokÉsBefektetések[Tényleges költség])","v":{"v":0,"d":"0 Ft"}},{"$f":"SUBTOTAL(109,MegtakarításokÉsBefektetések[Különbözet])","v":{"v":0,"d":"0 Ft"}}]
[null,"Egyéb",null,null,{"$f":"Élelmiszer[[#This Row],[Tervezett költség]]-Élelmiszer[[#This Row],[Tényleges költség]]","v":{"v":0,"d":"0 Ft"}}]
[null,"Összeg",{"$f":"SUBTOTAL(109,Élelmiszer[Tervezett költség])","v":{"v":0,"d":"0 Ft"}},{"$f":"SUBTOTAL(109,Élelmiszer[Tényleges költség])","v":{"v":0,"d":"0 Ft"}},{"$f":"SUBTOTAL(109,Élelmiszer[Különbözet])","v":{"v":0,"d":"0 Ft"}},null,"AJÁNDÉKOK ÉS ADOMÁNYOK","Tervezett költség","Tényleges költség","Különbözet"]
[{"$nulls":6},"Jótékonyság 1",null,null,{"$f":"AjándékokÉsAdományok[[#This Row],[Tervezett költség]]-AjándékokÉsAdományok[[#This Row],[Tényleges költség]]","v":{"v":0,"d":"0 Ft"}}]
[null,"KISÁLLATOK","Tervezett költség","Tényleges költség","Különbözet",null,"Jótékonyság 2",null,null,{"$f":"AjándékokÉsAdományok[[#This Row],[Tervezett költség]]-AjándékokÉsAdományok[[#This Row],[Tényleges költség]]","v":{"v":0,"d":"0 Ft"}}]
[null,"Élelmezés",null,null,{"$f":"Kisállatok[[#This Row],[Tervezett költség]]-Kisállatok[[#This Row],[Tényleges költség]]","v":{"v":0,"d":"0 Ft"}},null,"Jótékonyság 3",null,null,{"$f":"AjándékokÉsAdományok[[#This Row],[Tervezett költség]]-AjándékokÉsAdományok[[#This Row],[Tényleges költség]]","v":{"v":0,"d":"0 Ft"}}]
[null,"Egészségügy",null,null,{"$f":"Kisállatok[[#This Row],[Tervezett költség]]-Kisállatok[[#This Row],[Tényleges költség]]","v":{"v":0,"d":"0 Ft"}},null,"Összeg",{"$f":"SUBTOTAL(109,AjándékokÉsAdományok[Tervezett költség])","v":{"v":0,"d":"0 Ft"}},{"$f":"SUBTOTAL(109,AjándékokÉsAdományok[Tényleges költség])","v":{"v":0,"d":"0 Ft"}},{"$f":"SUBTOTAL(109,AjándékokÉsAdományok[Különbözet])","v":{"v":0,"d":"0 Ft"}}]
[null,"Ápolás",null,null,{"$f":"Kisállatok[[#This Row],[Tervezett költség]]-Kisállatok[[#This Row],[Tényleges költség]]","v":{"v":0,"d":"0 Ft"}}]
[null,"Játékok",null,null,{"$f":"Kisállatok[[#This Row],[Tervezett költség]]-Kisállatok[[#This Row],[Tényleges költség]]","v":{"v":0,"d":"0 Ft"}},null,"JOGI KIADÁSOK","Tervezett költség","Tényleges költség","Különbözet"]
[null,"Egyéb",null,null,{"$f":"Kisállatok[[#This Row],[Tervezett költség]]-Kisállatok[[#This Row],[Tényleges költség]]","v":{"v":0,"d":"0 Ft"}},null,"Ügyvéd",null,null,{"$f":"JogiKiadások[[#This Row],[Tervezett költség]]-JogiKiadások[[#This Row],[Tényleges költség]]","v":{"v":0,"d":"0 Ft"}}]
[null,"Összeg",{"$f":"SUBTOTAL(109,Kisállatok[Tervezett költség])","v":{"v":0,"d":"0 Ft"}},{"$f":"SUBTOTAL(109,Kisállatok[Tényleges költség])","v":{"v":0,"d":"0 Ft"}},{"$f":"SUBTOTAL(109,Kisállatok[Különbözet])","v":{"v":0,"d":"0 Ft"}},null,"Tartásdíj",null,null,{"$f":"JogiKiadások[[#This Row],[Tervezett költség]]-JogiKiadások[[#This Row],[Tényleges költség]]","v":{"v":0,"d":"0 Ft"}}]
[{"$nulls":6},"Kártérítés behajtása",null,null,{"$f":"JogiKiadások[[#This Row],[Tervezett költség]]-JogiKiadások[[#This Row],[Tényleges költség]]","v":{"v":0,"d":"0 Ft"}}]
[null,"SZEMÉLYES KIADÁSOK","Tervezett költség","Tényleges költség","Különbözet",null,"Egyéb",null,null,{"$f":"JogiKiadások[[#This Row],[Tervezett költség]]-JogiKiadások[[#This Row],[Tényleges költség]]","v":{"v":0,"d":"0 Ft"}}]
[null,"Egészségügy",null,null,{"$f":"SzemélyesKiadások[[#This Row],[Tervezett költség]]-SzemélyesKiadások[[#This Row],[Tényleges költség]]","v":{"v":0,"d":"0 Ft"}},null,"Összeg",{"$f":"SUBTOTAL(109,JogiKiadások[Tervezett költség])","v":{"v":0,"d":"0 Ft"}},{"$f":"SUBTOTAL(109,JogiKiadások[Tényleges költség])","v":{"v":0,"d":"0 Ft"}},{"$f":"SUBTOTAL(109,JogiKiadások[Különbözet])","v":{"v":0,"d":"0 Ft"}}]
[null,"Haj- és körömápolás",null,null,{"$f":"SzemélyesKiadások[[#This Row],[Tervezett költség]]-SzemélyesKiadások[[#This Row],[Tényleges költség]]","v":{"v":0,"d":"0 Ft"}}]
[null,"Ruhanemű",null,null,{"$f":"SzemélyesKiadások[[#This Row],[Tervezett költség]]-SzemélyesKiadások[[#This Row],[Tényleges költség]]","v":{"v":0,"d":"0 Ft"}}]
[null,"Tisztító",null,null,{"$f":"SzemélyesKiadások[[#This Row],[Tervezett költség]]-SzemélyesKiadások[[#This Row],[Tényleges költség]]","v":{"v":0,"d":"0 Ft"}}]
[null,"Egészségklub",null,null,{"$f":"SzemélyesKiadások[[#This Row],[Tervezett költség]]-SzemélyesKiadások[[#This Row],[Tényleges költség]]","v":{"v":0,"d":"0 Ft"}}]
[null,"Szervezeti tagdíjak",null,null,{"$f":"SzemélyesKiadások[[#This Row],[Tervezett költség]]-SzemélyesKiadások[[#This Row],[Tényleges költség]]","v":{"v":0,"d":"0 Ft"}}]
[null,"Egyéb",null,null,{"$f":"SzemélyesKiadások[[#This Row],[Tervezett költség]]-SzemélyesKiadások[[#This Row],[Tényleges költség]]","v":{"v":0,"d":"0 Ft"}}]
[null,"Összeg",{"$f":"SUBTOTAL(109,SzemélyesKiadások[Tervezett költség])","v":{"v":0,"d":"0 Ft"}},{"$f":"SUBTOTAL(109,SzemélyesKiadások[Tényleges költség])","v":{"v":0,"d":"0 Ft"}},{"$f":"SUBTOTAL(109,SzemélyesKiadások[Különbözet])","v":{"v":0,"d":"0 Ft"}}]